Cogmind - Beta 15 @@@ ROGUE MODE // 2025.06.22 @ 23:13:10 Player: CheifClapdad Result: Destroyed by G-47 Trooper with Particle Gun Performance ------------- Evolutions (0) 0 Regions Visited (1) 200 Robots Destroyed (16) 80 Value Destroyed (370) 370 Prototype IDs (0) 0 Alien Tech Used (0) 0 Bonus (0) 0 TOTAL SCORE: 650 Bonus ------- None Cogmind --------- Core Integrity 0/250 Matter 296/300 Energy 159/160 System Corruption 0% Temperature Cool (9) Movement Rolling (140) Ox4 Location -10/Materials Parts ------- > --- POWER (1) -------- Light Nuclear Core > --- PROPULSION (2) --- Light Treads Wheel > --- UTILITY (2) ------ High-capacity Storage Unit > --- WEAPON (2) ------- Light Assault Rifle > --- INVENTORY (20) --- Light Ion Engine Wheel Wheel Compact Wheel High-capacity Storage Unit Large Battery (200) Terrain Scan Processor EM Pulse Gun Peak State ------------ > --- POWER ------------ Light Nuclear Core > --- PROPULSION ------- Light Treads Wheel > --- UTILITY ---------- High-capacity Storage Unit > --- WEAPON ----------- Light Assault Rifle > --- INVENTORY -------- Light Ion Engine Wheel Wheel Compact Wheel High-capacity Storage Unit Terrain Scan Processor EM Pulse Gun [Rating: 7] Favorites ----------- Power Light Ion Engine Engine Light Ion Engine Power Core Light Nuclear Core Propulsion Wheel Treads Light Treads Wheel Wheel Utility Small Storage Unit Storage Small Storage Unit Weapon Assault Rifle Energy Gun EM Pulse Gun Ballistic Gun Assault Rifle Build | -11 -10 ------- Run | Yrd Mat Slots Evolved . | . . Power . | . . Propulsion . | . . Utility . | . . Weapon . | . . Parts Attached 14 | 7 7 Power 2 | 1 1 Engine 1 | 1 . Core 1 | . 1 Reactor . | . . Propulsion 4 | 2 2 Treads 2 | 1 1 Leg . | . . Wheel 2 | 1 1 Hover . | . . Flight . | . . Utility 2 | 1 1 Device . | . . Storage 2 | 1 1 Processor . | . . Hackware . | . . Protection . | . . Artifact . | . . Weapon 6 | 3 3 Energy Gun 2 | 2 . Energy Cannon . | . . Ballistic Gun 4 | 1 3 Ballistic Cannon . | . . Launcher . | . . Special Weapon . | . . Impact Weapon . | . . Slashing Weapon . | . . Piercing Weapon . | . . Special Melee Weapon . | . . Unidentified Prototypes . | . . Parts Lost 5 | . 5 Power 1 | . 1 Propulsion 1 | . 1 Utility . | . . Weapon 3 | . 3 Highest Loss Streak 3 | . 3 To Critical Strikes . | . . Average Backups 5 | 1 6 Power 1 | . 1 Propulsion 2 | 1 2 Utility . | . 1 Weapon . | . 1 Tool/Special . | . . Unused Backups 6 | . 6 Power 1 | . 1 Propulsion 2 | . 2 Utility 3 | . 3 Weapon . | . . Tool/Special . | . . Average Slot Usage (%) 75 | . 75 Engine 5 | . 5 Core 3 | . 3 Treads 14 | . 14 Wheel 14 | . 14 Storage 14 | . 14 Energy Gun 3 | . 3 Ballistic Gun 20 | . 20 Peak Build Rating 7 | 6 7 Average Rating 5 | 5 6 On Entrance 3 | . 6 Naked Turns . | . . Heaviest Build 46 | 12 46 Greatest Support 20 | 20 20 Greatest Overweight (x) 4 | . 4 Average Overweight (x) 2 | . 2 Largest Inventory Capacity 20 | 8 20 Average Capacity 13 | 7 14 Most Carried 9 | 4 9 Average Carried 5 | 2 6 Final Capacity 20 | 8 20 Final Carried 8 | 4 8 Class Distribution -------------------- 100% | Mutant Dominant Class ---------------- Mutant | -10/Materials Resources | -11 -10 ----------- Run | Yrd Mat Matter Collected 522 | 195 327 Remotely . | . . Salvage Created 574 | 54 520 Parts 31 | . 31 Haulers Intercepted . | . . Recyclers Shooed 1 | . 1 Parts Field Recycled . | . . Retrieved Matter . | . . Parts Self-Destructed . | . . Prevented . | . . Kills | -11 -10 ------- Run | Yrd Mat Combat Hostiles Destroyed 11 | . 11 Guns 11 | . 11 Classes Destroyed 5 | 1 4 Worker 2 | . 2 Builder 2 | . 2 Recycler 1 | 1 . Swarmer 2 | . 2 Grunt 9 | . 9 Best Kill Streak 5 | 1 5 Combat Bots Only 4 | . 4 Max Kills in Single Turn 1 | 1 1 Gunslinging . | . . Exploded . | . . Melee . | . . Uniques/NPCs Destroyed . | . . Combat | -11 -10 -------- Run | Yrd Mat Hostile Shots Fired 114 | . 114 Missed 30 | . 30 Hits 84 | . 84 Projectile 84 | . 84 Critical Strikes 1 | . 1 Damage Taken 1000 | 34 966 Core 262 | . 262 Absorbed by Shields . | . . Core Remaining (%) 100 | 100 . Volleys Fired 60 | 2 58 Largest 2 | 2 2 Hottest 60 | 60 60 Shots Fired 97 | 4 93 Gun 97 | 4 93 Cannon . | . . Launcher . | . . Special . | . . Kinetic 83 | 2 81 Thermal . | . . Explosive . | . . Electromagnetic 14 | 2 12 Robot Hit Streak 15 | 2 15 Robot Miss Streak 3 | 2 3 Penetration Max . | . . Secondary Targets 5 | . 5 Max Gunslinging Chain 1 | . 1 Shots Hit Robots 68 | 2 66 Core Hits 29 | 2 27 Critical Kills . | . . Critical Parts Destroyed 1 | . 1 Critical Strikes 1 | . 1 Destroy 1 | . 1 Melee Attacks . | . . Impact . | . . Slashing . | . . Piercing . | . . Sneak Attacks . | . . Combat Hostiles . | . . Follow-up Attacks . | . . Damage Inflicted 911 | 69 842 Guns 807 | 25 782 Cannons . | . . Explosions 104 | 44 60 Melee . | . . Ramming . | . . Kinetic 677 | 10 667 Thermal 104 | 44 60 Explosive . | . . Electromagnetic 130 | 15 115 Impact . | . . Slashing . | . . Piercing . | . . Highest Corruption . | . . Average Corruption . | . . Corruption Purged . | . . Corruption Blocked . | . . Overload Shots . | . . Overflow Damage . | . . Projectiles . | . . Explosions . | . . Melee . | . . Knockbacks . | . . Impact . | . . Kinetic . | . . Secondary . | . . Self-Inflicted Damage 35 | 35 . Shots 1 | 1 . Rammed . | . . Targets Rammed . | . . Kicked . | . . Crushed . | . . Highest Temperature 26 | 12 26 Average Temperature 9 | 12 8 Received Heat Transfer 477 | . 477 Siege Activations . | . . Martial Activations . | . . Shielding Activations . | . . Robots Disrupted . | . . Combat Hostiles . | . . Robots Corrupted . | . . Combat Hostiles . | . . Parts Fried 1 | . 1 Impact Corruptions . | . . Robots Melted . | . . Combat Hostiles . | . . Parts Melted . | . . Heat Transferred 150 | 50 100 Parts Sabotaged . | . . Parts Stolen . | . . Parts Stripped . | . . Power Chain Reactions 2 | 1 1 Alert | -11 -10 ------- Run | Yrd Mat Maximum Alert Level . | . . Low Security (%) 100 | 100 100 Level 1 . | . . Level 2 . | . . Level 3 . | . . Level 4 . | . . Level 5 . | . . High Security . | . . Max Security . | . . Peak Influence 115 | 5 115 Initial . | . . Average 40 | . 49 Influence Increases 290 | 5 285 Destroy 0b10 Robot/C 220 | . 220 Destroy 0b10 Robot/NC 25 | 5 20 Destroy Leader 40 | . 40 Destroy Structure 5 | . 5 Influence Decreases 264 | 5 259 Time Decay 214 | 5 209 Lost Part 50 | . 50 Squads Dispatched 1 | . 1 Investigation . | . . Extermination . | . . Reinforcement 1 | . 1 Assault . | . . Garrison . | . . Intercept . | . . Searches Triggered . | . . Construction Impeded . | . . Haulers Reinforced . | . . Active Scanning Responses . | . . Cargo Convoy Interrupts . | . . Stealth | -11 -10 --------- Run | Yrd Mat Distress Signals 2 | . 2 Communications Jammed . | . . Distress Signals . | . . Times Spotted 22 | . 22 Peak Tracking Total 6 | . 6 Tactical Retreats . | . . Traps | -11 -10 ------- Run | Yrd Mat Traps Triggered . | . . Indirectly . | . . Trap Hack Attempts . | . . Triggered . | . . Disarmed . | . . Reprogrammed . | . . Reused . | . . Traps Extracted . | . . Installed . | . . Triggered . | . . Machines | -11 -10 ---------- Run | Yrd Mat Machines Disabled . | . . Max in Single Turn . | . . Machines Repaired . | . . Machines Dismantled . | . . Machines Sabotaged . | . . Overloaded Fab Kills . | . . Hacking | -11 -10 --------- Run | Yrd Mat Machines Accessed . | . . Terminals . | . . Fabricators . | . . Repair Stations . | . . Recycling Units . | . . Scanalyzers . | . . Garrison Access . | . . Total Hacks . | . . Successful . | . . Failed . | . . Catastrophic . | . . Database Lockouts . | . . Manual . | . . Terminals . | . . Fabricators . | . . Repair Stations . | . . Recycling Units . | . . Scanalyzers . | . . Garrison Access . | . . Terminal Hacks . | . . Fabricator Hacks . | . . Repair Station Hacks . | . . Recycling Unit Hacks . | . . Scanalyzer . | . . Garrison Access Hacks . | . . Unauthorized Hacks . | . . Terminals . | . . Fabricators . | . . Repair Stations . | . . Recycling Units . | . . Scanalyzers . | . . Garrison Access . | . . Data Cores Recovered . | . . Used . | . . Hacking Detections . | . . Full Trace Events . | . . Feedback Events . | . . Feedback Blocked . | . . Robot Schematics Acquired . | . . Robots Built . | . . Authchips . | . . Time . | . . Total Robot Build Rating . | . . Part Schematics Acquired . | . . Parts Built . | . . Authchips . | . . Time . | . . Total Part Build Rating . | . . Parts Repaired . | . . Time . | . . Parts Recycled . | . . Recycled Matter . | . . Retrieved Matter . | . . Retrieved Components . | . . Parts Scanalyzed . | . . Part Schematics Acquired . | . . Parts Damaged . | . . Bothacking | -11 -10 ------------ Run | Yrd Mat Used RIF Installer . | . . Robots Hacked . | . . Non-combat . | . . Combat . | . . Robot Hacks Applied . | . . Relay Couplers Released . | . . Fabnet Peak Effective % . | . . Robots Rewired . | . . Allies Hacked . | . . Hacks Repelled . | . . Allies | -11 -10 -------- Run | Yrd Mat Total Allies . | . . Largest Group . | . . Highest-Rated Group . | . . Highest-Rated Ally . | . . Total Orders . | . . Ally Attacks . | . . Total Damage . | . . Kills . | . . Allies Corrupted . | . . Allies Melted . | . . Intel | -11 -10 ------- Run | Yrd Mat Active Infowar (turns) . | . . Robot Analysis Total . | . . Derelict Logs Recovered . | . . Drone Launches . | . . Drone Recoveries . | . . Exploration | -11 -10 ------------- Run | Yrd Mat Turns Passed 659 | 119 540 Spaces Moved 310 | 69 241 Core 3 | 3 . Treads 132 | 57 75 Legs . | . . Wheels 175 | 9 166 Hover . | . . Flight . | . . Fastest Speed 50 | 50 140 Average Speed 145 | 144 146 Slowest Speed 160 | 160 160 Overloaded Moves . | . . Propulsion Burnouts . | . . Robots Hopped . | . . Potential Cave-ins . | . . Cave-ins Triggered . | . . Exploration Rate (%) 20 | 5 35 Regions Visited 1 Branch Regions . Pre-discovered Areas . | . . Known Exits Taken . | . . Unknown Exits Taken 1 | 1 . Scrap Searched . | . . Spaces Dug . | . . Terrain Destroyed 7 | 2 5 Melee . | . . Projectile . | . . AOE 7 | 2 5 Terrain Rammed . | . . Walls Destroyed . | . . Machines Disabled . | . . Actions | -11 -10 --------- Run | Yrd Mat Total 422 | 81 341 Wait 25 | . 25 Move 309 | 68 241 Hop . | . . Pick Up 11 | 4 7 Fast Attach 8 | 6 2 Attach 4 | . 4 Detach . | . . Swap 3 | 1 2 Drop 2 | . 2 Fire 60 | 2 58 Melee . | . . Ram . | . . Kick . | . . Crush . | . . Escape Stasis . | . . Rewire . | . . Trap . | . . Miscellaneous . | . . Route ------- -11/Scrapyard -10/Materials History --------- Turn | Location | Event 25 | -11/Scrapyard | Discovered new exit (range 16) 120 | -11/Scrapyard | Entered Materials 305 | -10/Materials | Build established: Mutant 306 | -10/Materials | Core integrity fell below 50% 346 | -10/Materials | Lost 3 parts (1p2w) 499 | -10/Materials | Core integrity fell below 20% 660 | -10/Materials | Destroyed by G-47 Trooper with Particle Gun Last Messages --------------- 00443_ Acquired Terrain Scan Processor. 00480_ Lgt. Treads destroyed. 00486_ Assault Rifle destroyed. 00492_ Critical hit (Burn: +37). 00507_ G-47 Trooper destroyed. 00510_ G-34 Mercenary destroyed. 00515_ Acquired 96 matter. 00521_ T-07 Excavator is excavating. 00534_ Connecting with Terminal... 00534_ Current location identified: Materials 00538_ T-07 Excavator is excavating. 00540_ U-05 Engineer lays Concrete. 00551_ O-16 Technician: "IFF HANDSHAKE FAILED. SECURING TERMINAL." 00558_ ALERT: Hostiles spotted, dispatching reinforcements to Terminal M001. 00592_ Acquired Lrg. Battery. 00627_ G-34 Mercenary destroyed. 00633_ W-16 Scout sends out distress signal. 00633_ Acquired 24 matter. Map ----- +----------------------------------------------------+ | | | | | | | | | | | | | | | | | | | | | ??????????#######?????????????????????? | | ??????????#! #?????????????????????? | | # ???????# #?????????????????????? | | # ###### !==#?????????????????????? | | # + + = #?????????????????????? | | # # # == #?????????????????????? | | # # # #???#?????????????????? | | # + + #??? ###??????????????? | | ###### ##########??? #??????????????? | | # ?# #??????????### ###???????? #???? | | # ?# #???######## ####### #???? | | # # #???# %* #???? | | # # ##### = T #???? | | # + #???? | | # " ########g##### ######????????? | | # T # @ ## ##?????????????? | | # " ?# """ /## #??????? ????? | | # ?# """ ## #??????# #???? | | ###??# """ ## +??????# #???? | | ?????# "T" ## #??????# #???? | | ?????############### #??????# #???? | | ??????????# # #??????# #???? | | ??????????# """ # #??????# #???? | | ??????????# """ # #??????# #???? | | ??????????# """ #=[ #??????# #???# | | ??????????# =+ = ######## ##### | | ??????????# #=* ! % | | ??????????# # % | | ??????????# "Y" # """ [ % | | ??????????# """ # """ %#? | | ??????????########## """ %!#? | | ??????????# # !! #? | | ??????????# """ # ! #? | | ??????????# """ # """ ! #? | | ????????????"" """ + """ ! #? | | ??????????? "" # """ #? | | ??????????# "T """ # [ ########? | | ??????????# "" """ # #???????? | | ??????????? "" """ # """ #???????? | | ??????????? # """ / ??????? | +----------------------------------------------------+ Best States ------------- Heat Dissipation 25 Energy Generation 14 Energy Capacity 160 Matter Stores 300 Matter Capacity 300 Sight Range 16 Terrain Scan Density 10 Evasion (%) 44 Recoil Reduction 1 Item Schematics ----------------- None Robot Schematics ------------------ None Fabricated ------------ Nothing Repaired ---------- Nothing Alien Tech Used ----------------- None Achievements -------------- None Challenges ------------ None Game ------ Seed TeleporterVampiricVibroblade Manual? 0 Play Time 00:05:56 Cumulative 89.5 hours Start 2025.06.22 @ 23:09:32 End 2025.06.22 @ 23:13:10 Sessions 1 Manual Loads 0 Difficulty Rogue Special Mode None Game No. 118 Rogue 118 Adventurer 0 Explorer 0 Win Type - Total 1 Types 1/0/0/0/0/0/0/0/0/0 Lore% 38 Gallery% 49 Achievement% 42 Wizard Run 0 Options --------- Layout 1 ASCII 0 Keyboard 0 Movement Arrows Keybinds 0 Fullscreen 1 Font 24/Smallcaps Map View 50x35 Zoom Use 0% Tactical HUD 1 Map Filters NONE Filters NONE Steam X RUN: 3fbf99a7-be8d-4e16-8b2f-b191181e8e37